bitfinex/quotes_SOLUSD_20241113
["timestamp","ask_amount","ask_price","bid_price","bid_amount"]
[1731472577735,7.29043582,202.36,202.31,10.05363514]
[1731472577961,12.23213582,202.36,202.31,10.05363514]
[1731472578621,20.0,202.39,202.34,37.99042576]
[1731472578814,6.577,202.48,202.35,0.1]
[1731472579014,6.577,202.48,202.32,16.3478]
[1731472579238,37.99042576,202.46,202.38,37.99042576]
[1731472579444,3.09656213,202.5,202.35,0.1]
[1731472579622,3.09656213,202.5,202.32,16.3478]
[1731472579623,12.26267236,202.57,202.38,0.1]
[1731472580234,5.97967236,202.57,202.38,0.1]
[1731472580423,4.9372,202.55,202.39,10.3759]
[1731472580630,37.99042576,202.52,202.43,37.99042576]
[1731472580819,23.38759054,202.51,202.43,23.38759054]
[1731472581022,23.38759054,202.46,202.39,10.3759]
[1731472581213,23.38759054,202.44,202.35,23.38759054]
[1731472581538,23.38759054,202.4,202.34,6.4149]
[1731472581726,23.38759054,202.38,202.32,16.3478]
[1731472582515,4.9414,202.37,202.32,16.3478]
[1731472582713,23.38759054,202.38,202.32,16.3478]
[1731472583031,23.38759054,202.38,202.31,33.44122568]
[1731472583240,20.0,202.37,202.31,10.05363514]
[1731472583416,47.16447454,202.36,202.31,10.05363514]
[1731472583618,20.0,202.35,202.31,10.05363514]
[1731472583830,20.0,202.33,202.31,10.05363514]
[1731472584035,20.0,202.35,202.31,10.05363514]
[1731472584224,23.38759054,202.34,202.31,10.05363514]
[1731472584542,72.10707454,202.32,202.31,10.05363514]
[1731472584930,86.80862344,202.32,202.31,10.05363514]
[1731472585628,86.90862344,202.32,202.31,10.05363514]
[1731472585829,86.80862344,202.32,202.31,10.05363514]
[1731472586742,0.1,202.21,202.06,16.2157701]
[1731472586970,20.0,202.29,202.06,16.2157701]
[1731472586971,38.08913944,202.1,202.06,16.2157701]
[1731472587126,38.08913944,202.11,202.06,16.2157701]
[1731472587320,38.08913944,202.13,202.06,16.2157701]
[1731472587622,38.08913944,202.08,202.06,16.2157701]
[1731472587822,38.08913944,202.07,202.06,0.5109701]
[1731472588119,38.08913944,202.09,202.06,0.5109701]
[1731472588523,7.93787605,202.08,202.06,0.5109701]
[1731472588734,38.08913944,202.09,202.06,0.5109701]
[1731472589144,38.08913944,202.07,202.06,0.5109701]
[1731472589334,38.08913944,202.13,202.06,0.5109701]
[1731472589718,38.08913944,202.09,202.06,0.5109701]
[1731472589936,38.08913944,202.11,202.06,0.5109701]
[1731472590238,38.08913944,202.09,202.06,0.5109701]
[1731472590441,38.08913944,202.13,202.06,0.5109701]
[1731472590640,38.08913944,202.15,202.06,41.56930954]
[1731472591044,38.08913944,202.19,202.12,38.08913944]
[1731472591245,38.08913944,202.21,202.12,38.08913944]
[1731472591440,38.08913944,202.21,202.13,38.08913944]
[1731472591741,38.08913944,202.23,202.13,38.08913944]
[1731472591941,38.08913944,202.23,202.11,15.9391]
[1731472592122,38.08913944,202.23,202.13,38.08913944]
[1731472592323,38.08913944,202.19,202.12,23.776884]
[1731472592543,38.08913944,202.19,202.12,30.168784]
[1731472592726,38.08913944,202.19,202.12,9.3604]
[1731472592931,38.08913944,202.19,202.13,23.776884]
[1731472593153,38.08913944,202.23,202.15,38.08913944]
[1731472593325,38.08913944,202.21,202.15,23.776884]
[1731472593525,38.08913944,202.19,202.12,16.7816]
[1731472593849,38.08913944,202.15,202.12,6.3919]
[1731472594144,38.08913944,202.13,202.12,6.3919]
[1731472594351,17.3045,202.26,202.12,6.3919]
[1731472594352,38.08913944,202.19,202.12,6.3919]
[1731472594647,38.08913944,202.15,202.12,6.3919]
[1731472595432,38.08913944,202.15,202.06,0.5109701]
[1731472595633,38.08913944,202.08,202.06,0.5109701]
[1731472595827,38.08913944,202.12,202.06,0.5109701]
[1731472596046,38.08913944,202.14,202.06,47.26070954]
[1731472596330,38.08913944,202.14,202.06,9.1715701]
[1731472596526,38.08913944,202.14,202.06,359.26070954]
[1731472596720,38.08913944,202.12,202.06,312.5109701]
[1731472597028,38.08913944,202.21,202.13,0.1]
[1731472597232,38.08913944,202.25,202.16,38.08913944]
[1731472597551,38.08913944,202.25,202.17,23.776884]
[1731472597724,38.08913944,202.3,202.14,0.1]
[1731472597725,38.08913944,202.23,202.15,23.776884]
[1731472597930,38.08913944,202.21,202.13,23.776884]
[1731472598343,38.08913944,202.3,202.15,23.776884]
[1731472598344,38.08913944,202.23,202.15,23.776884]
[1731472598829,38.08913944,202.21,202.15,23.776884]
[1731472599030,38.08913944,202.23,202.17,23.776884]
[1731472599236,38.08913944,202.21,202.17,23.776884]
[1731472599436,38.08913944,202.21,202.15,23.776884]
[1731472599646,38.08913944,202.23,202.15,23.776884]
[1731472599827,38.08913944,202.23,201.92,24.50869351]
[1731472599828,38.08913944,202.19,202.12,38.08913944]
[1731472600023,38.08913944,202.19,202.12,312.0]
[1731472600227,38.08913944,202.16,202.12,312.0]
[1731472600422,38.08913944,202.19,202.12,312.0]
[1731472600648,38.08913944,202.14,202.09,6.4759]
[1731472600947,38.08913944,202.11,202.06,6.6971701]
[1731472601128,38.08913944,202.07,202.06,0.5109701]
[1731472601324,38.08913944,202.11,202.06,0.5109701]
[1731472601637,38.08913944,202.15,202.07,38.08913944]
[1731472602044,38.08913944,202.15,202.06,6.9611701]
[1731472602345,38.08913944,202.11,202.06,15.6217701]
[1731472602553,38.08913944,202.13,202.07,23.776884]
[1731472603148,38.08913944,202.11,202.06,13.1473701]
[1731472603547,38.08913944,202.11,202.06,15.6218701]
[1731472603930,38.08913944,202.13,202.06,15.6218701]
[1731472604146,38.08913944,202.11,202.06,15.6218701]
[1731472604347,38.08913944,202.13,202.06,15.7218701]
[1731472604668,38.08913944,202.07,202.06,0.5109701]
[1731472605533,38.08913944,202.09,202.06,0.5109701]
[1731472606255,38.08913944,202.07,202.06,0.5109701]
[1731472606441,38.08913944,202.11,202.06,0.5109701]
[1731472606639,38.08913944,202.09,202.06,0.5109701]
[1731472606937,38.08913944,202.11,202.06,0.5109701]
[1731472607138,38.08913944,202.07,202.06,0.5109701]
[1731472607730,17.3131,202.16,202.06,0.5109701]
[1731472607731,38.08913944,202.11,202.06,0.5109701]
[1731472608032,6.1869,202.21,202.06,9.1714701]
[1731472608033,38.08913944,202.13,202.06,9.1714701]
[1731472608232,38.08913944,202.09,202.06,0.5109701]
[1731472608756,0.1,202.05,202.0,86.393672]
[1731472609049,38.08913944,202.01,202.0,86.393672]
[1731472609241,58.08913944,202.01,202.0,86.393672]
[1731472609545,20.0,202.01,202.0,86.393672]
[1731472609851,58.08913944,202.01,202.0,86.393672]
[1731472610040,20.0,202.01,202.0,86.393672]
[1731472610240,38.08913944,202.02,202.0,86.393672]
[1731472610852,20.0,202.01,202.0,86.393672]
[1731472611031,20.0,202.01,201.89,6.662]
[1731472611032,58.08913944,202.01,201.89,6.662]
[1731472611232,38.08913944,201.9,201.89,6.662]
[1731472611438,38.08913944,201.92,201.89,6.662]
[1731472611640,38.08913944,201.9,201.82,2.4773]
[1731472611846,38.08913944,201.9,201.83,2.4772]
[1731472612146,38.08913944,201.87,201.81,6.662]
[1731472612446,38.08913944,201.87,201.76,6.1951]
[1731472612652,38.08913944,201.84,201.76,8.7732]
[1731472612862,38.08913944,201.88,201.79,38.18913944]
[1731472613029,38.08913944,201.9,201.83,38.08913944]
[1731472613234,38.08913944,201.9,201.81,38.08913944]
[1731472613429,38.08913944,201.94,201.85,38.18913944]
[1731472613753,38.08913944,201.94,201.84,38.08913944]
[1731472613937,38.08913944,202.0,201.81,312.1]
[1731472613938,38.08913944,201.92,201.81,312.1]
[1731472614136,38.08913944,201.92,201.83,38.08913944]
[1731472614333,38.08913944,201.9,201.81,38.08913944]
[1731472614542,38.08913944,201.9,201.82,0.1]
[1731472614758,38.08913944,201.9,201.83,46.75973944]
[1731472614937,38.08913944,201.88,201.76,12.4909]
[1731472615138,38.08913944,201.85,201.77,46.76203944]
[1731472615647,38.08913944,201.85,201.77,44.28403944]
[1731472615849,38.08913944,201.85,201.77,8.6729]
[1731472616045,38.08913944,201.83,201.77,8.6729]
[1731472616357,38.08913944,201.87,201.77,46.76203944]
[1731472616738,43.04333944,201.85,201.77,44.28403944]
[1731472616946,43.04333944,201.85,201.76,6.662]
[1731472616947,38.08913944,201.83,201.76,6.662]
[1731472617134,38.08913944,201.81,201.76,6.662]
[1731472617331,38.08913944,201.81,201.74,0.25794652]
[1731472617332,38.08913944,201.79,201.74,0.25794652]
[1731472618156,38.08913944,201.77,201.74,0.25794652]
[1731472618655,38.08913944,201.79,201.74,0.25794652]
[1731472618961,0.1,201.87,201.74,0.25794652]
[1731472618962,38.08913944,201.81,201.74,0.25794652]
[1731472620050,38.08913944,201.83,201.75,38.08913944]
[1731472620243,38.08913944,201.85,201.77,38.08913944]
[1731472620946,4.9539,201.86,201.79,38.08913944]
[1731472621157,43.04293944,201.87,201.79,38.08913944]
[1731472621538,43.04293944,201.87,201.78,38.08913944]
[1731472621873,38.08913944,201.95,201.86,38.08913944]
[1731472622163,43.04053944,201.97,201.89,38.08913944]
[1731472622545,43.03993944,201.99,201.91,38.08913944]
[1731472622745,38.08913944,201.99,201.91,38.08913944]
[1731472623053,38.08913944,201.97,201.89,38.08913944]
[1731472623352,38.08913944,201.99,201.91,38.08913944]
[1731472623556,38.08913944,202.01,201.93,38.08913944]
[1731472623753,4.9492,202.05,201.88,8.7684]
[1731472623754,38.08913944,201.99,201.91,38.08913944]
[1731472623944,38.08913944,201.99,201.88,8.6684]
[1731472624148,38.08913944,202.01,201.92,38.08913944]
[1731472624349,38.08913944,202.01,201.89,0.1]
[1731472624350,38.08913944,202.05,201.96,38.08913944]
[1731472624653,38.08913944,202.05,201.91,23.876884]
[1731472624654,38.08913944,202.03,201.98,312.0]
[1731472624858,38.08913944,201.99,201.93,6.1901]
[1731472625055,38.08913944,201.95,201.84,38.08913944]
[1731472625352,38.08913944,201.99,201.9,38.08913944]
[1731472625556,38.08913944,201.95,201.86,12.2127]
[1731472625759,17.324,202.03,201.86,12.2127]
[1731472625760,38.08913944,201.92,201.86,6.0203]
[1731472625957,38.08913944,201.9,201.83,18.5051]
[1731472626452,0.1,201.98,201.77,0.1]
[1731472626453,38.08913944,201.88,201.79,6.4019]
[1731472626659,38.08913944,201.84,201.75,38.08913944]
[1731472626873,0.1,201.93,201.77,38.08913944]
[1731472627042,0.1,201.94,201.75,2.4782]
[1731472627043,38.08913944,201.91,201.76,0.1]
[1731472627246,38.08913944,201.91,201.82,38.08913944]
[1731472628359,4.9529,201.9,201.82,38.08913944]
[1731472628558,38.08913944,201.87,201.76,6.1954]
[1731472628764,38.08913944,201.85,201.76,6.1954]
[1731472628961,38.08913944,201.83,201.74,0.25794652]
[1731472629266,4.9529,201.9,201.75,44.28483944]
[1731472629440,38.08913944,201.87,201.78,38.08913944]
[1731472629646,38.08913944,201.87,201.75,8.674]
[1731472629647,38.08913944,201.83,201.74,38.34708596]
[1731472630249,38.08913944,201.81,201.74,0.25794652]
[1731472630449,38.08913944,201.79,201.74,0.25794652]
[1731472630649,4.9554,201.8,201.74,0.25794652]
[1731472630650,24.9554,201.8,201.74,0.25794652]
[1731472631166,4.9554,201.8,201.74,0.25794652]
[1731472631373,38.08913944,201.79,201.74,0.25794652]
[1731472631678,4.9554,201.8,201.74,0.25794652]
[1731472632369,43.04493944,201.79,201.74,0.25794652]
[1731472633352,38.08913944,201.79,201.74,0.25794652]
[1731472634376,43.04483944,201.79,201.74,0.25794652]
[1731472634671,38.08913944,201.75,201.74,0.25794652]
[1731472635569,58.18913944,201.75,201.74,0.25794652]
[1731472635965,58.08913944,201.75,201.74,0.25794652]
[1731472636372,63.04573944,201.75,201.74,0.25794652]
[1731472636959,101.23487888,201.75,201.74,4.652e-05]
[1731472637165,55.43723944,201.75,201.65,0.5109701]
[1731472637379,4.9566,201.75,201.67,38.08913944]
[1731472637547,38.08913944,201.76,201.68,312.0]
[1731472637771,38.08913944,201.69,201.65,0.5109701]
[1731472638057,0.1,201.68,201.65,0.5109701]
[1731472638368,38.18913944,201.66,201.65,0.5109701]
[1731472638560,43.14793944,201.66,201.65,0.5109701]
[1731472638755,63.04793944,201.66,201.65,0.5109701]
[1731472639856,38.08913944,201.66,201.65,0.5109701]
[1731472640057,38.08913944,201.7,201.65,0.5109701]
[1731472640569,38.08913944,201.74,201.65,9.1891701]
[1731472640770,38.08913944,201.74,201.66,38.08913944]
[1731472640961,38.08913944,201.72,201.65,321.1891701]
[1731472641362,4.9564,201.76,201.65,321.1891701]
[1731472641363,38.08913944,201.7,201.65,0.5109701]
[1731472641779,38.08913944,201.74,201.66,38.08913944]
[1731472641977,38.08913944,201.76,201.68,38.08913944]
[1731472642363,38.08913944,201.76,201.68,44.49373944]
[1731472642561,43.04563944,201.76,201.68,53.17063944]
[1731472642878,0.1,201.83,201.68,53.17063944]
[1731472642879,38.08913944,201.72,201.68,6.4046]
[1731472643378,38.08913944,201.72,201.65,0.5109701]
[1731472643379,38.08913944,201.7,201.65,0.5109701]
[1731472643584,38.08913944,201.66,201.65,0.5109701]
[1731472643879,38.08913944,201.68,201.65,0.5109701]
[1731472644282,38.08913944,201.66,201.65,0.5109701]
[1731472644581,38.08913944,201.68,201.65,0.5109701]
[1731472644957,38.08913944,201.72,201.65,9.1892701]
[1731472645265,38.08913944,201.74,201.65,47.27840954]
[1731472645858,38.08913944,201.76,201.67,38.08913944]
[1731472646258,38.08913944,201.68,201.65,0.5109701]
[1731472646474,38.08913944,201.66,201.65,0.5109701]
[1731472648874,38.08913944,201.68,201.65,0.5109701]
[1731472649058,38.08913944,201.72,201.65,0.5109701]
[1731472649263,38.08913944,201.72,201.65,6.7097701]
[1731472649466,38.08913944,201.68,201.65,0.5109701]
[1731472649782,38.08913944,201.66,201.65,0.5109701]
[1731472650158,38.08913944,201.68,201.65,0.5109701]
[1731472650380,38.08913944,201.7,201.65,2.9903701]
[1731472650576,38.08913944,201.72,201.65,9.1891701]
[1731472650881,38.08913944,201.66,201.65,0.5109701]
[1731472652882,38.08913944,201.66,201.63,27.7157732]
[1731472652883,43.04793944,201.66,201.63,27.4267433]
[1731472653185,38.08913944,201.64,201.63,27.4267433]
[1731472654670,43.04843944,201.64,201.63,27.4267433]
[1731472655061,38.08913944,201.64,201.63,27.4267433]
[1731472657873,76.17827888,201.64,201.63,27.4267433]
[1731472658078,76.27827888,201.64,201.63,27.4267433]
[1731472658375,103.93581927,201.64,201.63,27.4267433]
[1731472658590,0.1,201.6,201.5,10.27257776]
[1731472658760,38.08913944,201.53,201.5,10.27257776]
[1731472660567,38.08913944,201.55,201.5,10.27257776]
[1731472660761,4.9605,201.59,201.5,10.27257776]
[1731472660762,38.08913944,201.53,201.5,10.27257776]
[1731472660966,38.08913944,201.51,201.5,10.27257776]
[1731472661269,38.08913944,201.53,201.5,10.27257776]
[1731472661677,38.08913944,201.55,201.5,10.27257776]
[1731472662075,38.08913944,201.57,201.5,10.27257776]
[1731472662275,4.9605,201.59,201.5,12.25757776]
[1731472662475,38.08913944,201.58,201.5,12.25757776]
[1731472662789,38.08913944,201.6,201.52,23.776884]
[1731472662962,38.08913944,201.58,201.51,23.776884]
[1731472663460,38.08913944,201.6,201.53,23.776884]
[1731472663665,38.08913944,201.62,201.53,23.776884]
[1731472664163,38.08913944,201.62,201.55,23.776884]
[1731472664365,7.55754039,201.67,201.6,38.08913944]
[1731472664666,38.08913944,201.65,201.57,16.2878]
[1731472664970,38.08913944,201.65,201.58,23.776884]
[1731472665674,17.3507,201.72,201.58,61.86602344]
[1731472665675,38.08913944,201.67,201.58,61.86602344]
[1731472665998,38.08913944,201.69,201.61,23.776884]
[1731472666170,6.38402692,201.73,201.61,23.776884]
[1731472666171,44.47316636,201.73,201.64,38.18913944]
[1731472666380,38.08913944,201.77,201.68,38.08913944]
[1731472666584,38.08913944,201.73,201.69,23.776884]
[1731472666887,38.08913944,201.75,201.7,23.776884]
[1731472667088,38.08913944,201.73,201.69,4.9581]
[1731472667287,38.08913944,201.8,201.67,8.6395]
[1731472667288,38.08913944,201.71,201.67,6.6562]
[1731472667482,38.08913944,201.68,201.67,6.6562]
[1731472667786,38.08913944,201.68,201.62,1.9838]
[1731472668084,38.08913944,201.68,201.62,6.9436]
[1731472668284,38.08913944,201.64,201.57,21.2487]
[1731472668593,38.08913944,201.66,201.62,6.6562]
[1731472668777,38.08913944,201.68,201.62,6.6562]
[1731472669086,38.08913944,201.68,201.62,13.5998]
[1731472669282,38.08913944,201.68,201.62,11.616]
[1731472669475,4.9585,201.67,201.62,6.6562]
[1731472669677,43.04753944,201.68,201.62,6.6562]
[1731472669886,38.08913944,201.64,201.57,6.9453]
[1731472670069,6.65124914,201.67,201.55,6.3124]
[1731472670070,38.08913944,201.62,201.55,6.3124]
[1731472670272,6.65124914,201.67,201.58,38.08913944]
[1731472670475,6.65124914,201.67,201.55,6.3124]
[1731472670476,38.08913944,201.65,201.56,38.08913944]
[1731472670876,38.08913944,201.65,201.57,6.9454]
[1731472671391,38.08913944,201.69,201.6,38.08913944]
[1731472671695,38.08913944,201.69,201.57,16.8675]
[1731472671878,38.08913944,201.67,201.59,38.08913944]
[1731472672187,38.08913944,201.71,201.63,38.08913944]
[1731472672496,38.08913944,201.73,201.64,15.0754]
[1731472672667,38.08913944,201.71,201.64,15.0754]
[1731472672989,38.08913944,201.69,201.64,15.0754]
[1731472674075,38.08913944,201.67,201.59,6.2004]
[1731472674377,38.08913944,201.65,201.57,15.0754]
[1731472674575,38.08913944,201.65,201.57,55.64493944]
[1731472674995,43.04823944,201.65,201.57,23.7571]
[1731472675208,43.04823944,201.65,201.57,21.2767]
[1731472675368,43.04823944,201.65,201.57,23.7572]
[1731472675888,38.08913944,201.67,201.58,23.776884]
[1731472676069,43.04783944,201.67,201.57,61.84633944]
[1731472676274,38.08913944,201.65,201.58,23.776884]
[1731472676682,44.74038858,201.67,201.58,23.776884]
[1731472676874,38.08913944,201.66,201.6,23.776884]
[1731472677080,44.74038858,201.68,201.6,6.2003]
[1731472677389,6.65124914,201.67,201.61,23.776884]
[1731472677572,38.08913944,201.68,201.61,23.776884]
[1731472678379,6.65124914,201.69,201.63,23.776884]
[1731472678578,6.65124914,201.69,201.62,38.08913944]
[1731472678579,6.65124914,201.69,201.65,23.776884]
[1731472678788,6.65124914,201.74,201.68,38.08913944]
[1731472679079,38.08913944,201.78,201.71,23.776884]
[1731472679282,38.08913944,201.78,201.71,39.186284]
[1731472679480,44.74038858,201.8,201.72,38.08913944]
[1731472679778,6.65124914,201.8,201.73,23.776884]
[1731472680095,44.74038858,201.8,201.73,23.776884]
[1731472680394,43.04353944,201.84,201.75,23.776884]
[1731472680581,38.08913944,201.82,201.75,23.776884]
[1731472680782,38.08913944,201.82,201.72,38.08913944]
[1731472680993,44.74038858,201.82,201.73,23.776884]
[1731472681185,38.08913944,201.84,201.76,38.08913944]
[1731472681502,38.08913944,201.94,201.83,15.4836]
[1731472681799,38.08913944,201.97,201.89,38.08913944]
[1731472681991,38.08913944,201.95,201.87,38.08913944]
[1731472682194,38.08913944,201.99,201.91,38.08913944]
[1731472682401,38.08913944,202.05,201.97,38.08913944]
[1731472682695,19.809142,202.03,201.99,38.08913944]
[1731472682904,44.52523944,202.07,202.0,2.4752]
[1731472682905,6.4361,202.07,202.0,2.4752]
[1731472683077,38.08913944,202.09,202.0,2.4752]
[1731472683398,38.08913944,202.09,202.01,38.08913944]
[1731472684295,38.08913944,202.05,202.0,6.5246]
[1731472684680,38.08913944,202.07,202.0,6.5246]
[1731472685287,38.08913944,202.05,202.0,6.5246]
[1731472685477,38.08913944,202.03,201.98,15.6931]
[1731472685696,38.08913944,202.05,201.98,15.6931]
[1731472686002,38.08913944,202.03,201.98,15.6931]
[1731472686377,44.50783303,202.03,201.98,15.6931]
[1731472686598,38.08913944,202.01,201.98,15.6931]
[1731472687098,38.08913944,202.03,201.98,15.6931]
[1731472687605,38.08913944,202.01,201.96,6.5246]
[1731472687781,38.08913944,201.97,201.81,15.6542]
[1731472687985,38.08913944,201.92,201.83,38.08913944]
[1731472688179,38.08913944,201.9,201.81,56.22083944]
[1731472688386,38.08913944,201.86,201.83,6.6447]
[1731472688590,6.31758247,201.9,201.83,6.6447]
[1731472688810,0.1,202.02,201.87,38.08913944]
[1731472689103,0.1,202.02,201.73,15.6542]
[1731472689104,38.08913944,201.89,201.78,38.08913944]
[1731472689281,0.1,201.92,201.83,6.6447]
[1731472689481,38.08913944,201.85,201.83,6.6447]
[1731472689679,38.08913944,201.85,201.73,15.6542]
[1731472689901,38.08913944,201.82,201.73,18.1326]
[1731472690086,38.08913944,201.82,201.74,38.08913944]
[1731472690297,38.08913944,201.82,201.74,350.08913944]
[1731472690510,38.08913944,201.82,201.73,24.329]
[1731472690691,38.08913944,201.8,201.74,2.4784]
[1731472690893,38.08913944,201.82,201.74,2.4784]
[1731472691305,38.08913944,201.82,201.73,18.1326]
[1731472692002,47.61217563,201.9,201.75,23.776884]
[1731472692003,38.08913944,201.84,201.75,23.776884]
[1731472692212,38.08913944,201.84,201.76,38.08913944]
[1731472692506,38.08913944,201.88,201.78,38.08913944]
[1731472692806,38.08913944,201.94,201.85,23.776884]
[1731472692984,38.08913944,201.94,201.86,40.56593944]
[1731472693182,38.08913944,201.96,201.88,38.08913944]
[1731472693388,38.08913944,201.96,201.89,23.776884]
[1731472693690,44.49129113,202.02,201.94,38.08913944]
[1731472694011,43.03923944,202.02,201.94,38.08913944]
[1731472694307,38.08913944,202.06,201.98,38.08913944]
[1731472694883,43.03773944,202.08,201.98,38.08913944]
[1731472695188,38.08913944,202.06,201.97,6.1887]
[1731472695384,38.08913944,202.09,202.01,38.08913944]
[1731472695590,38.08913944,202.09,202.0,23.776884]
[1731472695591,38.08913944,202.07,201.99,38.08913944]
[1731472696387,38.08913944,202.09,201.95,0.1]
[1731472696686,38.08913944,202.09,201.67,38.08913944]
[1731472696687,0.1,201.74,201.67,38.08913944]
[1731472696889,0.1,201.72,201.64,15.211]
[1731472697107,38.08913944,201.73,201.64,15.211]
[1731472697401,0.1,201.69,201.64,15.211]
[1731472697607,38.18913944,201.73,201.64,55.77973944]
[1731472697900,0.1,201.67,201.64,15.211]
[1731472698107,38.18913944,201.69,201.64,15.211]
[1731472698401,38.08913944,201.71,201.64,15.211]
[1731472698602,38.18913944,201.73,201.64,55.77973944]
[1731472698827,0.1,201.68,201.64,15.211]
[1731472699111,38.18913944,201.67,201.64,15.211]
[1731472699293,0.1,201.64,201.53,54.07183944]
[1731472699497,38.18913944,201.61,201.53,15.9827]
[1731472699812,0.1,201.63,201.55,38.08913944]
[1731472700509,38.18913944,201.63,201.62,312.0]
[1731472700809,68.18913944,201.63,201.62,312.0]
[1731472701209,30.1,201.63,201.62,312.0]
[1731472701414,0.1,201.65,201.62,312.0]
[1731472701615,0.1,201.65,201.59,40.56923944]
[1731472702295,38.08913944,201.67,201.59,40.56923944]
[1731472702801,0.1,201.65,201.59,40.56923944]
[1731472703204,0.1,201.68,201.6,23.776884]
[1731472703406,0.1,201.7,201.62,23.776884]
[1731472703704,0.1,201.68,201.63,38.08913944]
[1731472703889,30.0,201.64,201.63,38.08913944]
[1731472704090,0.1,201.68,201.63,38.08913944]
[1731472704294,0.1,201.68,201.62,0.1]
[1731472704495,38.08913944,201.7,201.67,312.0]
[1731472705120,38.08913944,201.72,201.65,0.1]
[1731472705296,38.08913944,201.76,201.68,23.776884]
[1731472705499,38.18913944,201.76,201.68,23.776884]
[1731472705813,38.08913944,201.74,201.67,38.08913944]
[1731472706410,38.08913944,201.76,201.68,23.776884]
[1731472706618,38.08913944,201.76,201.7,23.776884]
[1731472707114,38.08913944,201.76,201.69,38.08913944]
[1731472707317,38.08913944,201.76,201.71,2.4788]
[1731472707616,0.1,201.79,201.71,46.76493944]
[1731472707821,38.08913944,201.8,201.73,38.08913944]
[1731472708000,38.08913944,201.8,201.74,23.876884]
[1731472708203,38.08913944,201.82,201.74,23.876884]
[1731472708724,0.1,201.81,201.75,38.08913944]
[1731472708908,0.1,201.81,201.74,0.1]
[1731472709224,38.18913944,201.84,201.76,23.776884]
[1731472709421,38.08913944,201.82,201.77,8.6731]
[1731472709800,38.08913944,201.79,201.77,6.1951]
[1731472710017,38.08913944,201.81,201.75,23.776884]
[1731472710201,38.08913944,201.83,201.76,0.1]
[1731472710803,38.08913944,201.89,201.82,38.08913944]
[1731472711000,38.08913944,202.0,201.84,0.1]
[1731472711001,38.08913944,201.91,201.84,0.1]
[1731472711200,38.08913944,201.91,201.87,2.4768]
[1731472711425,38.08913944,201.91,201.88,23.776884]
[1731472711614,38.08913944,201.91,201.87,8.6689]
[1731472711805,0.1,201.96,201.87,6.1921]
[1731472711806,38.08913944,201.89,201.87,6.1921]
[1731472712622,38.08913944,201.89,201.87,8.6689]
[1731472713505,38.08913944,201.89,201.81,50.47673944]
[1731472713506,38.08913944,201.89,201.82,32.447884]
[1731472713713,0.1,201.83,201.74,0.1]
[1731472713914,38.08913944,201.8,201.75,8.7739]
[1731472714113,38.08913944,201.84,201.77,38.18913944]
[1731472714303,38.08913944,201.79,201.72,16.6853]
[1731472714497,38.08913944,201.79,201.73,8.7749]
[1731472714697,38.08913944,201.81,201.73,46.86403944]
[1731472714918,38.08913944,201.84,201.76,38.08913944]
[1731472715124,4.9531,201.89,201.73,8.7749]
[1731472715125,38.08913944,201.88,201.81,38.08913944]
[1731472715305,0.1,201.87,201.81,312.0]
[1731472715610,38.08913944,201.88,201.81,314.4774]
[1731472715818,38.08913944,201.9,201.81,358.76043944]
[1731472716118,0.1,201.81,201.72,19.1638]
[1731472716305,0.1,201.85,201.75,38.08913944]
[1731472716510,38.08913944,201.82,201.73,38.08913944]
[1731472716718,0.1,201.79,201.72,19.1638]
[1731472716916,0.1,201.74,201.72,16.6853]
[1731472717124,38.18913944,201.74,201.65,2.4794]
[1731472717429,0.1,201.73,201.65,2.4794]
[1731472717627,0.1,201.75,201.66,38.08913944]
[1731472718613,0.1,201.77,201.7,38.08913944]
[1731472719021,0.1,201.77,201.73,312.0]
[1731472719222,38.18913944,201.84,201.74,61.96602344]
[1731472719410,38.18913944,201.86,201.78,38.08913944]
[1731472719619,0.1,201.84,201.79,26.254684]
[1731472720008,38.08913944,201.86,201.79,32.449184]
[1731472720211,0.1,201.84,201.79,32.449184]
[1731472720419,0.1,201.85,201.79,32.449184]
[1731472720623,38.18913944,201.86,201.79,32.449184]
[1731472721015,38.08913944,201.86,201.8,0.1]
[1731472721220,38.08913944,201.88,201.81,23.776884]
[1731472721622,0.1,201.87,201.83,23.776884]
[1731472721826,0.1,201.83,201.82,6.1936]
[1731472722029,0.1,201.8,201.72,50.48193944]
[1731472722330,38.08913944,201.79,201.7,38.08913944]
[1731472722513,38.18913944,201.79,201.73,312.0]
[1731472722720,38.18913944,201.81,201.73,312.0]
[1731472723040,38.18913944,201.81,201.72,44.28573944]
[1731472723207,38.08913944,201.81,201.72,44.38573944]